Department Family,Entity,Date,Expense Type,Expense Area,Supplier,Transaction Number,AP Amount
Department of Health,St. Helens&Knowsley Hospitals NHS Trust,31/12/2021,"Books, Journals & Subscr",LIBRARY SERVICES,ELSEVIER LTD,40465045,"2,471.61"
Department of Health,St. Helens&Knowsley Hospitals NHS Trust,31/12/2021,"Books, Journals & Subscr",LIBRARY SERVICES,ELSEVIER LTD,40465045,"3,079.17"
Department of Health,St. Helens&Knowsley Hospitals NHS Trust,31/12/2021,"Books, Journals & Subscr",LIBRARY SERVICES,ELSEVIER LTD,40465045,"4,563.49"
Department of Health,St. Helens&Knowsley Hospitals NHS Trust,31/12/2021,"Books, Journals & Subscr",LIBRARY SERVICES,ELSEVIER LTD,40465045,"3,079.17"
Department of Health,St. Helens&Knowsley Hospitals NHS Trust,31/12/2021,"Books, Journals & Subscr",LIBRARY SERVICES,ELSEVIER LTD,40465045,"3,079.17"
Department of Health,St. Helens&Knowsley Hospitals NHS Trust,31/12/2021,"Books, Journals & Subscr",LIBRARY SERVICES,ELSEVIER LTD,40465045,"4,270.00"
Department of Health,St. Helens&Knowsley Hospitals NHS Trust,31/12/2021,"Books, Journals & Subscr",LIBRARY SERVICES,ELSEVIER LTD,40465045,"5,700.00"
Department of Health,St. Helens&Knowsley Hospitals NHS Trust,31/12/2021,"Books, Journals & Subscr",LIBRARY SERVICES,ELSEVIER LTD,40465045,"5,428.22"
Department of Health,St. Helens&Knowsley Hospitals NHS Trust,31/12/2021,"Books, Journals & Subscr",LIBRARY SERVICES,ELSEVIER LTD,40465045,"3,079.17"
Department of Health,St. Helens&Knowsley Hospitals NHS Trust,31/12/2021,CNST contributions,CLINICAL NEGLIGENCE,10003266,NHSLACONT-T213,"1,454,037.00 "
Department of Health,St. Helens&Knowsley Hospitals NHS Trust,31/12/2021,Computer Hardware Purch,IMT SCHEMES FUND,HP INC UK LTD,40033863,"39,630.22"
Department of Health,St. Helens&Knowsley Hospitals NHS Trust,31/12/2021,Computer Hardware Purch,IMT SCHEMES FUND,HP INC UK LTD,40033863,"7,926.04"
Department of Health,St. Helens&Knowsley Hospitals NHS Trust,31/12/2021,Computer Maintenance,RADIOGRAPHY WHISTON,HEALTHCARE SOFTWARE SYSTEMS LTD,40538613,"26,530.65"
Department of Health,St. Helens&Knowsley Hospitals NHS Trust,31/12/2021,Computer Maintenance,RADIOGRAPHY WHISTON,HEALTHCARE SOFTWARE SYSTEMS LTD,40538613,"5,306.13"
Department of Health,St. Helens&Knowsley Hospitals NHS Trust,31/12/2021,Computer Maintenance,FINANCE DIRECTORATE HQ,CIVICA UK LTD,40595798,575.00
Department of Health,St. Helens&Knowsley Hospitals NHS Trust,31/12/2021,Computer Maintenance,FINANCE DIRECTORATE HQ,CIVICA UK LTD,40595798,75.00
Department of Health,St. Helens&Knowsley Hospitals NHS Trust,31/12/2021,Computer Maintenance,FINANCE DIRECTORATE HQ,CIVICA UK LTD,40595798,"62,936.00"
Department of Health,St. Helens&Knowsley Hospitals NHS Trust,31/12/2021,Computer Maintenance,FINANCE DIRECTORATE HQ,CIVICA UK LTD,40595798,"1,875.00"
Department of Health,St. Helens&Knowsley Hospitals NHS Trust,31/12/2021,Computer Maintenance,FINANCE DIRECTORATE HQ,CIVICA UK LTD,40595798,"13,092.20"
Department of Health,St. Helens&Knowsley Hospitals NHS Trust,31/12/2021,Computer Maintenance,TRUST IT SYSTEMS,BAXTER HEALTHCARE LTD,40726078,"50,823.27"
Department of Health,St. Helens&Knowsley Hospitals NHS Trust,31/12/2021,Computer Maintenance,TRUST IT SYSTEMS,BAXTER HEALTHCARE LTD,40726078,"10,164.65"
Department of Health,St. Helens&Knowsley Hospitals NHS Trust,31/12/2021,Computer Software/License,BD INCOME-NON PARTNERS,VOICE CONNECT LTD,40685395,"38,203.00"
Department of Health,St. Helens&Knowsley Hospitals NHS Trust,31/12/2021,Computer Software/License,BD INCOME-NON PARTNERS,VOICE CONNECT LTD,40685395,"7,640.60"
Department of Health,St. Helens&Knowsley Hospitals NHS Trust,31/12/2021,Continence Products,COMMUNITY CONTINENCE SERVICE,ESSITY UK LTD,40655751,"44,735.18"
Department of Health,St. Helens&Knowsley Hospitals NHS Trust,31/12/2021,Drugs,DRUGS/M+S UNALLOCATED WH,ALLIANCE HEALTHCARE DISTRIBUTION LTD,40382804,-55.72
Department of Health,St. Helens&Knowsley Hospitals NHS Trust,31/12/2021,Drugs,DRUGS/M+S UNALLOCATED WH,ALLIANCE HEALTHCARE DISTRIBUTION LTD,40382804,-278.61
Department of Health,St. Helens&Knowsley Hospitals NHS Trust,31/12/2021,Drugs,DRUGS/M+S UNALLOCATED WH,ALLIANCE HEALTHCARE DISTRIBUTION LTD,40579067,-499.25
Department of Health,St. Helens&Knowsley Hospitals NHS Trust,31/12/2021,Drugs,DRUGS/M+S UNALLOCATED WH,ALLIANCE HEALTHCARE DISTRIBUTION LTD,40579067,"-2,490.62"
Department of Health,St. Helens&Knowsley Hospitals NHS Trust,31/12/2021,IGComp3PSoft - Additions,Balance Sheet,GRAPHNET HEALTH LTD,40502804,"2,000,000.00"
Department of Health,St. Helens&Knowsley Hospitals NHS Trust,31/12/2021,Independent Sector,LLP,ST HELENS ORTHOPAEDICS,40463882,"401,571.00"
Department of Health,St. Helens&Knowsley Hospitals NHS Trust,31/12/2021,Independent Sector,LLP,ST HELENS ORTHOPAEDICS,40544870,"204,307.00"
Department of Health,St. Helens&Knowsley Hospitals NHS Trust,31/12/2021,Lab Equip Maint Contracts,CHEMICAL PATHOLOGY DEPT,SIEMENS HEALTHCARE DIAGNOSTICS LTD,40431536,"116,126.95"
Department of Health,St. Helens&Knowsley Hospitals NHS Trust,31/12/2021,Laboratory Chemicals,HAEM + BLOOD TRANSFUSION,SYSMEX UK LTD,40148826,"39,858.71"
Department of Health,St. Helens&Knowsley Hospitals NHS Trust,31/12/2021,Laboratory Chemicals,HAEM + BLOOD TRANSFUSION,SYSMEX UK LTD,40464718,"39,858.71"
Department of Health,St. Helens&Knowsley Hospitals NHS Trust,31/12/2021,Laboratory Chemicals,HAEM + BLOOD TRANSFUSION,SYSMEX UK LTD,40464718,"7,971.74"
Department of Health,St. Helens&Knowsley Hospitals NHS Trust,31/12/2021,Med & Surg Equip Disp,GEN MED ENDOSCOPY H2,BOSTON SCIENTIFIC LTD,39597102,"26,072.02"
Department of Health,St. Helens&Knowsley Hospitals NHS Trust,31/12/2021,Med & Surg Equip Disp,GEN MED ENDOSCOPY H2,BOSTON SCIENTIFIC LTD,39864729,"24,930.34"
Department of Health,St. Helens&Knowsley Hospitals NHS Trust,31/12/2021,Med & Surg Equip Disp,GEN MED ENDOSCOPY H2,BOSTON SCIENTIFIC LTD,40515699,"21,804.56"
Department of Health,St. Helens&Knowsley Hospitals NHS Trust,31/12/2021,Med & Surg Equip Disp,GEN MED ENDOSCOPY H2,BOSTON SCIENTIFIC LTD,40515699,"4,360.91"
Department of Health,St. Helens&Knowsley Hospitals NHS Trust,31/12/2021,Med & Surg Equip General,THEATRES BURNS + PLASTICS,AAH PHARMACEUTICALS LTD,40594369,13.05
Department of Health,St. Helens&Knowsley Hospitals NHS Trust,31/12/2021,Med & Surg Equip General,THEATRES BURNS + PLASTICS,AAH PHARMACEUTICALS LTD,40594369,65.25
Department of Health,St. Helens&Knowsley Hospitals NHS Trust,31/12/2021,Med & Surg Equip General,THEATRES MAIN ST HELEN'S,AAH PHARMACEUTICALS LTD,40594369,26.10
Department of Health,St. Helens&Knowsley Hospitals NHS Trust,31/12/2021,Med & Surg Equip General,THEATRES MAIN ST HELEN'S,AAH PHARMACEUTICALS LTD,40594369,130.50
Department of Health,St. Helens&Knowsley Hospitals NHS Trust,31/12/2021,Med Equip Additions,Balance Sheet,BOSTON SCIENTIFIC LTD,40432536,"6,099.00"
Department of Health,St. Helens&Knowsley Hospitals NHS Trust,31/12/2021,Med Equip Additions,Balance Sheet,BOSTON SCIENTIFIC LTD,40432536,"36,999.00"
Department of Health,St. Helens&Knowsley Hospitals NHS Trust,31/12/2021,Med Equip Additions,Balance Sheet,BOSTON SCIENTIFIC LTD,40432536,"8,619.60"
Department of Health,St. Helens&Knowsley Hospitals NHS Trust,31/12/2021,Miscellaneous Expenditure,BEVAN COURT FM,NEW HOSPITALS (ST HELENS & KNOWSLEY) LTD,40498042,"72,482.97"
Department of Health,St. Helens&Knowsley Hospitals NHS Trust,31/12/2021,Miscellaneous Expenditure,PFI ENABLING WORKS,MEDIREST,40537150,"60,000.00"
Department of Health,St. Helens&Knowsley Hospitals NHS Trust,31/12/2021,Miscellaneous Expenditure,HSDU WHISTON,SYNERGY HEALTH (UK) LTD,40544863,"178,291.49"
Department of Health,St. Helens&Knowsley Hospitals NHS Trust,31/12/2021,Miscellaneous Expenditure,PFI ENABLING WORKS,NEW HOSPITALS (ST HELENS & KNOWSLEY) LTD,40628381,"1,075,557.00"
Department of Health,St. Helens&Knowsley Hospitals NHS Trust,31/12/2021,Miscellaneous Expenditure,MEDICAL CARE GROUP MGT,ST HELENS COUNCIL,40677302,"89,781.30"
Department of Health,St. Helens&Knowsley Hospitals NHS Trust,31/12/2021,Various Items,Various departments,SUPPLY CHAIN COORDINATION LIMITED,40559660,"178,961.91"
Department of Health,St. Helens&Knowsley Hospitals NHS Trust,31/12/2021,Various Items,Various departments,SUPPLY CHAIN COORDINATION LIMITED,40645536,"202,013.60"
Department of Health,St. Helens&Knowsley Hospitals NHS Trust,31/12/2021,Various Items,Various departments,SUPPLY CHAIN COORDINATION LIMITED,40645569,"244,276.20"
Department of Health,St. Helens&Knowsley Hospitals NHS Trust,31/12/2021,Postage & Carriage,HOTEL SERVICES MGT ST H,PITNEY BOWES LTD,40517114,"52,689.18"
Department of Health,St. Helens&Knowsley Hospitals NHS Trust,31/12/2021,Stocks Raw Materials,Balance Sheet,PHOENIX HEALTHCARE DISTRIBUTION LTD,40382803,"31,139.19"
Department of Health,St. Helens&Knowsley Hospitals NHS Trust,31/12/2021,Stocks Raw Materials,Balance Sheet,ALLIANCE HEALTHCARE DISTRIBUTION LTD,40382804,"8,434.32"
Department of Health,St. Helens&Knowsley Hospitals NHS Trust,31/12/2021,Stocks Raw Materials,Balance Sheet,ALLIANCE HEALTHCARE DISTRIBUTION LTD,40382804,"29,054.61"
Department of Health,St. Helens&Knowsley Hospitals NHS Trust,31/12/2021,Stocks Raw Materials,Balance Sheet,ALLIANCE HEALTHCARE DISTRIBUTION LTD,40382805,"44,808.07"
Department of Health,St. Helens&Knowsley Hospitals NHS Trust,31/12/2021,Stocks Raw Materials,Balance Sheet,AMGEN LTD,40538913,"28,215.00"
Department of Health,St. Helens&Knowsley Hospitals NHS Trust,31/12/2021,Stocks Raw Materials,Balance Sheet,NOVARTIS PHARMACEUTICALS UK LTD,40538961,"53,424.00"
Department of Health,St. Helens&Knowsley Hospitals NHS Trust,31/12/2021,Stocks Raw Materials,Balance Sheet,NOVARTIS PHARMACEUTICALS UK LTD,40538973,"29,917.44"
Department of Health,St. Helens&Knowsley Hospitals NHS Trust,31/12/2021,Stocks Raw Materials,Balance Sheet,NOVARTIS PHARMACEUTICALS UK LTD,40538973,"2,090.16"
Department of Health,St. Helens&Knowsley Hospitals NHS Trust,31/12/2021,Stocks Raw Materials,Balance Sheet,NOVARTIS PHARMACEUTICALS UK LTD,40538973,0.63
Department of Health,St. Helens&Knowsley Hospitals NHS Trust,31/12/2021,Stocks Raw Materials,Balance Sheet,NOVARTIS PHARMACEUTICALS UK LTD,40538973,"3,231.32"
Department of Health,St. Helens&Knowsley Hospitals NHS Trust,31/12/2021,Stocks Raw Materials,Balance Sheet,HEALTHCARE AT HOME LTD,40560528,"140,452.50"
Department of Health,St. Helens&Knowsley Hospitals NHS Trust,31/12/2021,Stocks Raw Materials,Balance Sheet,HEALTHCARE AT HOME LTD,40579061,"80,019.64"
Department of Health,St. Helens&Knowsley Hospitals NHS Trust,31/12/2021,Stocks Raw Materials,Balance Sheet,AAH PHARMACEUTICALS LTD,40579063,"92,443.50"
Department of Health,St. Helens&Knowsley Hospitals NHS Trust,31/12/2021,Stocks Raw Materials,Balance Sheet,HEALTHCARE AT HOME LTD,40579064,"65,672.17"
Department of Health,St. Helens&Knowsley Hospitals NHS Trust,31/12/2021,Stocks Raw Materials,Balance Sheet,ALLIANCE HEALTHCARE DISTRIBUTION LTD,40579067,"13,849.34"
Department of Health,St. Helens&Knowsley Hospitals NHS Trust,31/12/2021,Stocks Raw Materials,Balance Sheet,ALLIANCE HEALTHCARE DISTRIBUTION LTD,40579067,"68,717.61"
Department of Health,St. Helens&Knowsley Hospitals NHS Trust,31/12/2021,Stocks Raw Materials,Balance Sheet,AAH PHARMACEUTICALS LTD,40594369,"9,160.85"
Department of Health,St. Helens&Knowsley Hospitals NHS Trust,31/12/2021,Stocks Raw Materials,Balance Sheet,AAH PHARMACEUTICALS LTD,40594369,"42,752.15"
Department of Health,St. Helens&Knowsley Hospitals NHS Trust,31/12/2021,Stocks Raw Materials,Balance Sheet,BAXTER HEALTHCARE LTD,40627199,"30,391.80"
Department of Health,St. Helens&Knowsley Hospitals NHS Trust,31/12/2021,Stocks Raw Materials,Balance Sheet,ALEXION PHARMA UK LTD,40681746,"31,168.80"
Department of Health,St. Helens&Knowsley Hospitals NHS Trust,31/12/2021,Stocks Raw Materials,Balance Sheet,BAXTER HEALTHCARE LTD,40682019,"20,544.00"
Department of Health,St. Helens&Knowsley Hospitals NHS Trust,31/12/2021,Stocks Raw Materials,Balance Sheet,BAXTER HEALTHCARE LTD,40682019,724.40
Department of Health,St. Helens&Knowsley Hospitals NHS Trust,31/12/2021,Stocks Raw Materials,Balance Sheet,BAXTER HEALTHCARE LTD,40682019,"1,719.58"
Department of Health,St. Helens&Knowsley Hospitals NHS Trust,31/12/2021,Stocks Raw Materials,Balance Sheet,BAXTER HEALTHCARE LTD,40682019,995.22
Department of Health,St. Helens&Knowsley Hospitals NHS Trust,31/12/2021,Stocks Raw Materials,Balance Sheet,BAXTER HEALTHCARE LTD,40682019,"2,261.23"
Department of Health,St. Helens&Knowsley Hospitals NHS Trust,31/12/2021,Stocks Raw Materials,Balance Sheet,BAXTER HEALTHCARE LTD,40682019,"1,266.01"
Department of Health,St. Helens&Knowsley Hospitals NHS Trust,31/12/2021,Stocks Raw Materials,Balance Sheet,BAXTER HEALTHCARE LTD,40682019,"1,401.44"
Department of Health,St. Helens&Knowsley Hospitals NHS Trust,31/12/2021,Stocks Raw Materials,Balance Sheet,AMGEN LTD,40682397,"5,205.60"
Department of Health,St. Helens&Knowsley Hospitals NHS Trust,31/12/2021,Stocks Raw Materials,Balance Sheet,AMGEN LTD,40682397,"23,265.00"
Department of Health,St. Helens&Knowsley Hospitals NHS Trust,31/12/2021,Stocks Raw Materials,Balance Sheet,NOVARTIS PHARMACEUTICALS UK LTD,40682508,"37,931.04"
Department of Health,St. Helens&Knowsley Hospitals NHS Trust,31/12/2021,Stocks Raw Materials,Balance Sheet,NOVARTIS PHARMACEUTICALS UK LTD,40682508,"3,231.32"
Department of Health,St. Helens&Knowsley Hospitals NHS Trust,31/12/2021,Stocks Raw Materials,Balance Sheet,NOVARTIS PHARMACEUTICALS UK LTD,40682508,11.23
Department of Health,St. Helens&Knowsley Hospitals NHS Trust,31/12/2021,Stocks Raw Materials,Balance Sheet,NOVARTIS PHARMACEUTICALS UK LTD,40682508,"7,862.40"
Department of Health,St. Helens&Knowsley Hospitals NHS Trust,31/12/2021,Stocks Raw Materials,Balance Sheet,NOVARTIS PHARMACEUTICALS UK LTD,40682508,4.49
Department of Health,St. Helens&Knowsley Hospitals NHS Trust,31/12/2021,Stocks Raw Materials,Balance Sheet,PHOENIX HEALTHCARE DISTRIBUTION LTD,40722380,"34,504.34"
Department of Health,St. Helens&Knowsley Hospitals NHS Trust,31/12/2021,Stocks Raw Materials,Balance Sheet,ALLIANCE HEALTHCARE DISTRIBUTION LTD,40722381,"8,798.67"
Department of Health,St. Helens&Knowsley Hospitals NHS Trust,31/12/2021,Stocks Raw Materials,Balance Sheet,ALLIANCE HEALTHCARE DISTRIBUTION LTD,40722381,"40,403.55"
Department of Health,St. Helens&Knowsley Hospitals NHS Trust,31/12/2021,Training Expenses,THERAPY - AHP FACULTY PROJECT,ISAMBARD DIGITAL MEDIA LTD TA IDM MEDIA,40432555,"22,659.27"
Department of Health,St. Helens&Knowsley Hospitals NHS Trust,31/12/2021,Training Expenses,THERAPY - AHP FACULTY PROJECT,ISAMBARD DIGITAL MEDIA LTD TA IDM MEDIA,40432555,"4,531.85"
Department of Health,St. Helens&Knowsley Hospitals NHS Trust,31/12/2021,Water,RATES/WATER WHISTON,WATER PLUS,40426071,"32,418.49"
Department of Health,St. Helens&Knowsley Hospitals NHS Trust,31/12/2021,Water,RATES/WATER WHISTON,WATER PLUS,40595643,"36,057.58"
